bitfinex/quotes_SOLUSD_20250415
["timestamp","ask_amount","ask_price","bid_price","bid_amount"]
[1744755631586,0.063,127.17,127.13,19.62503127]
[1744755631774,0.063,127.17,127.16,11.7590673]
[1744755632284,0.063,127.17,127.15,11.7590673]
[1744755635496,0.063,127.17,127.14,11.7590673]
[1744755635684,0.063,127.17,127.15,11.7590673]
[1744755638371,0.063,127.17,127.1,115.428]
[1744755638573,17.52047541,127.16,127.11,11.7590673]
[1744755638775,18.64964886,127.14,127.11,11.7590673]
[1744755639093,41.44871616,127.14,127.1,94.7590673]
[1744755639279,0.14216157,127.13,127.07,6.1528]
[1744755639479,18.64964886,127.12,127.08,11.7590673]
[1744755639692,5.76140811,127.11,127.08,11.7590673]
[1744755640595,26.51663063,127.12,127.08,11.7590673]
[1744755641569,26.51663063,127.12,127.08,19.62807498]
[1744755642393,5.76141036,127.11,127.08,19.62807498]
[1744755643270,18.90564824,127.14,127.1,7.52868445]
[1744755643468,18.64964886,127.13,127.11,7.52868445]
[1744755653001,18.64964886,127.13,127.1,15.39641733]
[1744755653301,18.64964886,127.13,127.09,7.52868445]
[1744755653689,18.64964886,127.13,127.09,15.39700995]
[1744755655109,18.64964886,127.12,127.08,7.86874355]
[1744755655291,15.39469851,127.13,127.08,15.397428]
[1744755655490,18.64964886,127.1,127.08,15.397428]
[1744755656012,34.04434737,127.13,127.08,15.397428]
[1744755656197,2.88057977,127.12,127.09,7.52868445]
[1744755657004,18.64964886,127.11,127.09,7.52868445]
[1744755657205,18.64964886,127.11,127.08,15.397428]
[1744755657907,18.64964886,127.08,127.07,0.03]
[1744755658109,29.68964886,127.08,127.07,0.03]
[1744755658295,45.22955374,127.08,127.07,0.03]
[1744755658613,50.98497339,127.08,127.07,0.03]
[1744755659190,53.86081885,127.08,127.07,0.03]
[1744755662516,35.44506851,127.08,127.07,0.03]
[1744755662818,37.55870772,127.08,127.07,0.03]
[1744755664114,45.08739217,127.08,127.07,0.03]
[1744755664310,45.22955374,127.08,127.07,0.03]
[1744755664696,107.08479025,127.08,127.07,0.03]
[1744755665009,109.95484051,127.08,127.07,0.03]
[1744755665312,79.84010271,127.08,127.07,0.03]
[1744755666192,40.44901043,127.07,127.06,1e-08]
[1744755666406,57.12874514,127.07,127.06,1e-08]
[1744755666916,64.79181043,127.05,127.04,0.03]
[1744755667116,72.32049488,127.05,127.04,0.03]
[1744755667305,78.06099359,127.05,127.04,0.03]
[1744755668121,85.93191055,127.05,127.04,0.03]
[1744755671520,80.19141184,127.05,127.04,0.03]
[1744755674217,52.66272739,127.05,127.04,0.03]
[1744755674824,60.19141184,127.05,127.04,0.03]
[1744755675124,80.19141184,127.05,127.04,0.03]
[1744755682330,18.79181043,127.04,127.03,0.03]
[1744755682511,26.32049488,127.04,127.03,0.03]
[1744755684020,34.1920314,127.04,127.03,0.03]
[1744755684220,40.32301043,127.03,127.02,1e-08]
[1744755684428,84.49273268,127.03,127.02,1e-08]
[1744755684815,54.37799488,127.03,127.02,1e-08]
[1744755685128,65.37799488,127.03,127.02,1e-08]
[1744755686232,73.25015106,127.03,127.02,1e-08]
[1744755686435,66.72385106,127.03,127.02,1e-08]
[1744755687335,66.72385106,127.03,127.0,0.03]
[1744755687336,64.79181043,127.01,127.0,0.03]
[1744755687514,72.32049488,127.01,127.0,0.03]
[1744755688452,78.02485123,127.01,127.0,0.03]
[1744755690047,85.89824702,127.01,127.0,0.03]
[1744755690353,85.89824702,127.01,127.0,1e-08]
[1744755691447,109.52824702,127.01,127.0,1e-08]
[1744755691652,85.89824702,127.01,127.0,1e-08]
[1744755693153,18.79181043,126.98,126.93,0.03]
[1744755693344,18.79181043,126.96,126.93,7.55868445]
[1744755693538,18.79181043,126.96,126.93,0.03]
[1744755693539,26.32049488,126.96,126.93,0.03]
[1744755693759,18.64964886,126.94,126.93,0.03]
[1744755694450,7.87731772,126.95,126.93,0.03]
[1744755694653,18.64964886,126.94,126.93,0.03]
[1744755696857,18.64964886,126.95,126.93,7.55868445]
[1744755698356,8.01886299,126.96,126.94,7.52868445]
[1744755698357,18.64964886,126.96,126.94,7.52868445]
[1744755699263,18.64964886,126.96,126.93,0.03]
[1744755699560,26.17833331,126.96,126.93,0.03]
[1744755699759,18.64964886,126.96,126.93,0.03]
[1744755699961,26.52665528,126.96,126.93,0.03]
[1744755701460,7.67084602,126.95,126.93,0.03]
[1744755701662,0.14216157,126.95,126.93,0.03]
[1744755703078,7.87773751,126.94,126.93,0.03]
[1744755703981,18.64964886,126.96,126.93,0.03]
[1744755705482,26.52634208,126.96,126.93,0.03]
[1744755705780,18.64964886,126.96,126.94,7.52868445]
[1744755707864,18.64964886,126.96,126.93,7.55868445]
[1744755708766,26.52622862,126.96,126.93,0.03]
[1744755708961,34.05491307,126.96,126.93,0.03]
[1744755710076,11.0,126.95,126.93,0.03]
[1744755710283,18.64964886,126.94,126.93,0.03]
[1744755714077,26.52738637,126.94,126.93,0.03]
[1744755714381,34.05607082,126.94,126.93,0.03]
[1744755714682,26.52738637,126.94,126.93,0.03]
[1744755718385,34.19823239,126.94,126.93,0.03]
[1744755720182,54.19823239,126.94,126.93,0.03]
[1744755720372,80.19823239,126.94,126.93,0.03]
[1744755720568,0.14216157,126.93,126.92,0.03]
[1744755720772,30.77506788,126.93,126.92,1e-08]
[1744755721364,0.14216157,126.89,126.87,0.03]
[1744755721578,37.17833331,126.88,126.87,0.03]
[1744755722080,34.0597961,126.88,126.87,0.03]
[1744755722293,45.20195767,126.88,126.87,0.03]
[1744755723881,29.64964886,126.88,126.87,0.03]
[1744755724491,45.0597961,126.88,126.87,0.03]
[1744755724665,45.20195767,126.88,126.87,0.03]
[1744755725360,45.0597961,126.88,126.87,0.03]
[1744755725565,45.20195767,126.88,126.87,0.03]
[1744755729691,46.75105767,126.88,126.87,0.03]
[1744755730070,18.79181043,126.83,126.81,2.8274892]
[1744755730285,58.86959488,126.82,126.81,2.8274892]
[1744755730496,57.32049488,126.82,126.81,2.8274892]
[1744755730670,37.17833331,126.82,126.81,2.8274892]
[1744755730875,37.17833331,126.82,126.81,2.8574892]
[1744755731188,45.06352492,126.82,126.81,2.8574892]
[1744755731690,45.20568649,126.82,126.81,2.8574892]
[1744755731884,37.67700204,126.82,126.81,2.8574892]
[1744755732189,37.53484047,126.82,126.81,2.8574892]
[1744755732369,29.64964886,126.82,126.81,2.8574892]
[1744755732578,11.0,126.82,126.81,2.8574892]
[1744755736092,18.88519161,126.82,126.81,2.8574892]
[1744755736481,19.02735318,126.82,126.81,2.8574892]
[1744755736677,69.49518768,126.82,126.81,2.8574892]
[1744755737697,57.67700204,126.82,126.81,2.8574892]
[1744755739084,11.0,126.82,126.81,2.8574892]
[1744755740601,18.88519161,126.82,126.81,2.8574892]
[1744755741192,11.0,126.82,126.81,2.8574892]
[1744755742621,18.88519161,126.82,126.81,2.8574892]
[1744755742905,11.0,126.82,126.81,2.8574892]
[1744755746697,11.0,126.82,126.81,14.67567484]
[1744755746900,11.0,126.82,126.81,2.8574892]
[1744755747285,18.88519161,126.82,126.81,2.8574892]
[1744755747595,11.0,126.82,126.81,2.8574892]
[1744755748709,11.0,126.82,126.81,14.67567484]
[1744755751106,11.0,126.82,126.81,2.8574892]
[1744755751608,11.0,126.82,126.81,22.56148826]
[1744755755319,11.0,126.82,126.81,18.30297614]
[1744755756510,245.96,126.85,126.81,18.30297614]
[1744755756703,245.96,126.85,126.84,7.55967352]
[1744755757222,11.02,126.86,126.84,7.55967352]
[1744755757910,11.02,126.86,126.85,7.55967352]
[1744755759110,18.57967352,126.86,126.81,2.8574892]
[1744755759312,7.55967352,126.85,126.81,2.8574892]
[1744755760518,15.44357578,126.85,126.81,2.8574892]
[1744755760996,15.44357578,126.85,126.81,10.41716272]
[1744755761200,7.88390226,126.85,126.82,7.55967352]
[1744755761707,18.90300487,126.86,126.82,7.55967352]
[1744755762515,26.46267839,126.86,126.82,7.55967352]
[1744755763020,26.46267839,126.86,126.82,5.55967352]
[1744755763316,5.72048065,126.85,126.82,5.55967352]
[1744755763711,18.90300487,126.86,126.82,5.55967352]
[1744755764020,18.90300487,126.86,126.83,7.55967352]
[1744755765112,18.90300487,126.86,126.84,7.55967352]
[1744755765113,11.02,126.86,126.84,7.55967352]
[1744755765415,18.90276888,126.86,126.82,7.55967352]
[1744755765913,11.02,126.86,126.84,7.55967352]
[1744755769517,7.88363571,126.85,126.81,2.8574892]
[1744755769727,5.72674381,126.84,126.83,7.55967352]
[1744755769912,5.72674381,126.84,126.82,7.55967352]
[1744755770117,5.72674381,126.84,126.81,2.8574892]
[1744755770620,5.72674381,126.84,126.81,10.41716272]
[1744755770818,18.9029069,126.86,126.82,7.55967352]
[1744755771624,5.72868153,126.85,126.82,7.55967352]
[1744755772525,5.72868153,126.84,126.82,7.55967352]
[1744755773204,7.88340009,126.85,126.82,7.55967352]
[1744755774608,2.86517657,126.84,126.82,7.55967352]
[1744755775325,7.88396037,126.84,126.81,10.41716272]
[1744755777822,7.88332676,126.85,126.81,10.41716272]
[1744755778201,5.7308339,126.84,126.81,10.41716272]
[1744755779236,7.88332676,126.85,126.81,10.41716272]
[1744755781024,7.88332676,126.85,126.81,2.8574892]
[1744755781218,5.73060947,126.84,126.81,2.8574892]
[1744755781829,7.55967352,126.84,126.81,2.8574892]
[1744755782005,7.88456989,126.83,126.81,2.8574892]
[1744755784134,7.88394828,126.84,126.81,2.8574892]
[1744755784826,5.73426084,126.83,126.81,2.8574892]
[1744755785635,5.73426084,126.82,126.81,2.8574892]
[1744755786030,16.16051653,126.82,126.81,2.8574892]
[1744755786444,24.04570814,126.82,126.81,2.8574892]
[1744755788247,16.48603462,126.82,126.81,2.8574892]
[1744755788429,27.50603462,126.82,126.81,2.8574892]
[1744755788916,19.62084301,126.82,126.81,2.8574892]
[1744755790548,19.62084301,126.82,126.81,10.41716272]
[1744755790748,11.02,126.82,126.81,10.41716272]
[1744755792341,11.02,126.82,126.81,18.30297614]
[1744755793049,7.88365629,126.85,126.81,18.30297614]
[1744755793227,18.90365629,126.85,126.81,18.30297614]
[1744755793956,8.60290857,126.84,126.81,18.30297614]
[1744755794448,8.60290857,126.84,126.81,10.41716272]
[1744755794622,13.61934636,126.84,126.81,2.8574892]
[1744755794947,5.73528435,126.83,126.81,2.8574892]
[1744755796023,15.44486513,126.82,126.81,2.8574892]
[1744755796849,24.04754843,126.82,126.81,2.8574892]
[1744755800456,8.6026833,126.82,126.81,2.8574892]
[1744755801535,8.6026833,126.82,126.81,10.41716272]
[1744755802234,18.90334147,126.85,126.81,10.41716272]
[1744755802553,11.02,126.85,126.84,7.55967352]
[1744755803934,11.02,126.85,126.83,7.55967352]
[1744755804451,11.02,126.85,126.81,10.7431589]
[1744755804653,11.02,126.85,126.81,93.7431589]
[1744755804834,11.02,126.85,126.83,7.55967352]
[1744755805246,11.02,126.85,126.84,7.55967352]
[1744755807253,5.73484852,126.85,126.84,15.4436218]
[1744755807553,5.73484852,126.85,126.84,17.0281218]
[1744755807848,5.73484852,126.85,126.84,100.0281218]
[1744755808049,5.73484852,126.85,126.84,118.67777066]
[1744755808235,0.063,126.88,126.84,148.91646474]
[1744755808441,0.063,126.88,126.87,7.55967352]
[1744755812658,0.063,126.88,126.87,7.55967352]
[1744755814163,0.063,126.88,126.86,7.55967352]
[1744755814457,0.063,126.88,126.84,92.46820848]
[1744755814458,7.62267352,126.88,126.84,83.0]
[1744755814663,7.88394828,126.84,126.8,90.55967353]
[1744755814840,26.4836218,126.84,126.8,83.00000001]
[1744755815442,18.92394828,126.84,126.8,90.55967353]
[1744755816143,7.55967352,126.83,126.8,83.00000001]
[1744755816345,29.14157352,126.82,126.81,1e-08]
[1744755816553,47.93338395,126.82,126.8,1e-08]
[1744755816877,15.44548694,126.81,126.8,1e-08]
[1744755817357,28.29116247,126.81,126.8,1e-08]
[1744755817566,26.23656157,126.77,126.76,0.03]
[1744755817751,49.108694,126.77,126.76,0.03]
[1744755818063,34.68195885,126.77,126.76,0.03]
[1744755818246,18.79181043,126.76,126.75,0.03]
[1744755818444,0.14216157,126.73,126.7,0.079]
[1744755818640,39.86633093,126.71,126.7,0.079]
[1744755818942,45.57636389,126.71,126.7,0.079]
[1744755819369,20.0,126.69,126.68,12.24267507]
[1744755819549,20.0,126.69,126.66,3.19925755]
[1744755819550,0.14216157,126.68,126.66,3.19925755]
[1744755819753,22.87213243,126.67,126.66,3.19925755]
[1744755819963,22.87213243,126.67,126.66,2.69925755]
[1744755820263,43.014294,126.67,126.66,2.69925755]
[1744755820468,42.87213243,126.67,126.66,2.69925755]
[1744755820680,11.83213243,126.67,126.66,2.69925755]
[1744755820854,11.04,126.67,126.66,2.69925755]
[1744755821172,28.1544704,126.67,126.6,9.23058398]
[1744755821371,11.83213243,126.65,126.6,11.83213243]
[1744755821572,11.83213243,126.65,126.57,110.40291267]
[1744755821573,11.83213243,126.64,126.57,90.651]
[1744755821872,11.83213243,126.65,126.6,11.83213243]
[1744755822176,11.83213243,126.64,126.6,11.83213243]
[1744755822376,11.83213243,126.64,126.57,84.6142]
[1744755822685,11.83213243,126.64,126.59,11.83213243]
[1744755822851,31.04,126.67,126.62,11.83213243]
[1744755823057,11.83213243,126.65,126.6,11.83213243]
[1744755823371,11.83213243,126.64,126.59,11.83213243]
[1744755823574,11.83213243,126.66,126.61,11.83213243]
[1744755823875,42.87213243,126.67,126.62,11.83213243]
[1744755824070,11.04,126.67,126.63,11.83213243]
[1744755824271,11.04,126.67,126.64,11.83213243]
[1744755824874,11.04,126.67,126.65,11.83213243]
[1744755825060,11.83213243,126.7,126.65,11.83213243]
[1744755825260,11.04,126.69,126.65,11.83213243]
[1744755825476,22.87213243,126.69,126.65,11.83213243]
[1744755825677,22.87213243,126.69,126.64,19.72839296]
[1744755826277,22.87213243,126.69,126.65,11.83213243]
[1744755826583,11.04,126.69,126.66,11.83213243]
[1744755826964,22.87213243,126.69,126.62,27.64160788]
[1744755827278,11.04,126.69,126.66,11.83213243]
[1744755828783,11.04,126.69,126.65,11.83213243]
[1744755829082,11.04,126.69,126.65,19.72746518]
[1744755829285,11.04,126.69,126.66,11.83213243]
[1744755830478,1.5372,126.74,126.68,11.83213243]
[1744755830780,11.04,126.73,126.72,11.83213243]
[1744755830973,11.04,126.74,126.72,11.83213243]
[1744755831179,11.04,126.74,126.73,11.83213243]
[1744755833285,11.04,126.74,126.73,18.92810382]
[1744755833986,11.04,126.74,126.7,7.89265982]
[1744755834179,11.04,126.74,126.71,18.92810382]
[1744755834366,11.04,126.74,126.72,18.92810382]
[1744755834569,11.04,126.74,126.73,18.92810382]
[1744755835383,11.04,126.74,126.73,26.81889526]
[1744755836681,11.04,126.74,126.73,18.92810382]
[1744755838465,245.96,126.75,126.73,18.92810382]
[1744755838670,257.0,126.75,126.74,18.92810382]
[1744755839188,257.0,126.75,126.73,18.92810382]
[1744755843797,257.0,126.75,126.72,18.92810382]
[1744755843975,257.0,126.75,126.71,26.81986162]
[1744755844398,257.0,126.75,126.72,18.92810382]
[1744755845188,264.88955631,126.75,126.72,18.92810382]
[1744755845386,264.88955631,126.75,126.71,18.92810382]
[1744755846792,264.88955631,126.75,126.73,18.92810382]
[1744755846996,264.88955631,126.75,126.72,18.92810382]
[1744755848201,283.81766013,126.75,126.68,7.8939059]
[1744755848398,283.81766013,126.75,126.7,18.92810382]
[1744755848709,264.88955631,126.75,126.71,18.92810382]
[1744755852983,264.88955631,126.75,126.67,45.73507783]
[1744755853185,264.88955631,126.75,126.7,11.83514946]
[1744755853379,18.28424946,126.74,126.66,94.83514946]
[1744755853684,11.83514946,126.73,126.67,11.83514946]
[1744755854088,11.83514946,126.72,126.67,11.83514946]
[1744755855208,7.89141414,126.72,126.68,11.83514946]
[1744755856085,19.7265636,126.72,126.67,11.83514946]
[1744755856287,11.83514946,126.7,126.65,0.03]
[1744755856486,11.14,126.69,126.65,11.86514946]
[1744755856689,11.14,126.69,126.65,0.03]
[1744755856887,11.14,126.69,126.66,11.83514946]
[1744755857500,7.8939059,126.68,126.66,11.83514946]
[1744755857888,19.03353446,126.69,126.66,11.83514946]
[1744755858094,11.14,126.69,126.67,11.83514946]
[1744755861941,11.14,126.69,126.66,19.73023014]
[1744755862120,19.03338838,126.69,126.66,11.83514946]
[1744755862414,30.86853784,126.69,126.65,0.03]
[1744755862606,19.03338838,126.69,126.65,11.86514946]
[1744755863011,30.86853784,126.69,126.65,0.03]
[1744755863325,23.9869582,126.68,126.65,0.03]
[1744755863519,26.83778664,126.68,126.65,0.03]
[1744755863910,5.70270874,126.67,126.65,0.03]
[1744755864110,17.5378582,126.67,126.65,0.03]
[1744755864421,19.8724634,126.66,126.65,0.03]
[1744755864795,25.57517214,126.66,126.65,0.03]
[1744755865196,19.8724634,126.66,126.65,0.03]
[1744755865509,28.41940781,126.66,126.65,0.03]
[1744755867017,20.0,126.65,126.6,11.83514946]
[1744755867211,11.14,126.64,126.6,11.83514946]
[1744755867720,11.14,126.64,126.59,7.92945501]
[1744755867936,11.14,126.64,126.6,11.83514946]
[1744755868158,22.97514946,126.64,126.59,0.03]
[1744755868311,7.89702282,126.63,126.59,11.86514946]
[1744755868516,11.14,126.64,126.6,11.83514946]
[1744755869538,19.0366794,126.64,126.6,11.83514946]
[1744755872026,11.14,126.64,126.63,11.83514946]
[1744755872819,11.14,126.64,126.62,11.83514946]
[1744755875429,19.03643224,126.64,126.61,11.83514946]
[1744755875636,30.8715817,126.64,126.59,19.73466758]
[1744755875837,19.03643224,126.64,126.6,11.83514946]
[1744755876038,11.14,126.64,126.61,11.83514946]
[1744755876443,19.03648256,126.64,126.61,11.83514946]
[1744755876959,19.03648256,126.64,126.6,19.73401963]
[1744755877553,19.03648256,126.64,126.6,11.83514946]
[1744755878350,19.03648256,126.64,126.59,7.89919087]
[1744755878655,19.03648256,126.64,126.6,11.83514946]
[1744755882754,19.03648256,126.64,126.61,11.83514946]
[1744755885133,19.03648256,126.64,126.61,7.58666454]
[1744755889361,19.03648256,126.64,126.59,7.899469]
[1744755889529,19.03648256,126.64,126.58,7.89983831]
[1744755889847,19.03648256,126.64,126.6,7.58666454]
[1744755890651,19.03648256,126.64,126.61,7.58666454]
[1744755894833,7.58666454,126.63,126.57,90.90054204]
[1744755895245,7.58666454,126.63,126.58,7.58666454]
[1744755895964,7.8976465,126.62,126.58,7.58666454]
[1744755896368,7.8976465,126.62,126.55,2.8274892]
[1744755896369,20.14216157,126.6,126.55,2.8274892]
[1744755896547,18.66666454,126.59,126.55,2.8274892]
[1744755896960,7.58666454,126.58,126.55,2.8274892]
[1744755898267,7.90076637,126.57,126.55,2.8274892]
[1744755898557,27.72882611,126.56,126.55,2.8274892]
[1744755898765,29.31102611,126.56,126.55,2.8274892]
[1744755898966,8.0195,126.56,126.55,2.8274892]
[1744755899139,28.16166157,126.56,126.55,2.8274892]
[1744755899477,20.0,126.54,126.51,0.2503]
[1744755899644,11.08,126.53,126.51,0.2503]
[1744755899844,18.66666454,126.53,126.51,0.2503]
[1744755900159,7.90388871,126.52,126.51,0.2503]
[1744755900746,20.0,126.54,126.51,0.2503]
[1744755901053,7.58666454,126.52,126.51,0.2503]
[1744755901256,50.67216191,126.52,126.51,0.2503]
[1744755901763,17.58427327,126.52,126.51,0.2503]
[1744755901942,5.70392179,126.52,126.51,0.2503]
[1744755902264,37.72643484,126.52,126.51,0.2503]
[1744755902472,39.92640176,126.52,126.51,0.2503]
[1744755903163,51.00640176,126.52,126.51,0.2503]
[1744755903377,98.49835412,126.52,126.51,0.2503]
[1744755903666,46.0,126.49,126.43,19.78951763]
[1744755903850,11.88035148,126.48,126.43,19.78951763]
[1744755904053,11.08,126.47,126.45,0.03]
[1744755904664,20.14216157,126.51,126.45,11.91035148]
[1744755904863,23.02035148,126.5,126.45,11.91035148]
[1744755905169,23.02035148,126.5,126.46,11.88035148]
[1744755905464,7.7661,126.52,126.48,11.88035148]
[1744755905666,11.14,126.51,126.45,1.6674]
[1744755905836,11.14,126.51,126.49,11.88035148]
[1744755906042,11.14,126.51,126.5,11.88035148]
[1744755906263,246.48,126.54,126.5,11.88035148]
[1744755906439,11.14,126.55,126.53,11.88035148]
[1744755906638,11.14,126.55,126.54,19.78299096]
[1744755906841,11.14,126.59,126.54,31.66334244]
[1744755907061,11.14,126.59,126.58,11.88035148]
[1744755908546,40.50368302,126.65,126.58,11.88035148]
[1744755908547,11.14,126.63,126.59,7.89951812]
[1744755908739,11.14,126.63,126.61,11.88035148]
[1744755909370,11.14,126.63,126.59,19.7798696]
[1744755909665,11.14,126.63,126.6,11.88035148]
[1744755909869,11.14,126.63,126.61,11.88035148]
[1744755910169,11.14,126.63,126.62,11.88035148]
[1744755910744,11.14,126.67,126.62,19.77799798]
[1744755910943,11.14,126.67,126.65,11.88035148]
[1744755911144,11.14,126.67,126.66,11.88035148]
[1744755911766,11.88035148,126.67,126.62,11.88035148]
[1744755911971,11.14,126.66,126.64,11.88035148]
[1744755912475,11.14,126.66,126.63,11.88035148]
[1744755912673,23.02035148,126.66,126.61,11.88035148]
[1744755912975,11.88035148,126.65,126.6,94.88035148]
[1744755913280,11.88035148,126.63,126.6,83.0]
[1744755913459,11.88035148,126.64,126.59,11.88035148]
[1744755913774,11.88035148,126.62,126.56,7.90121829]
[1744755913982,11.88035148,126.62,126.55,83.0]
[1744755913983,11.88035148,126.6,126.55,83.0]
[1744755914154,11.14,126.61,126.58,11.88035148]
[1744755915162,38.01757676,126.61,126.56,18.97929774]
[1744755915368,19.03827902,126.61,126.57,18.97929774]
[1744755915782,11.14,126.61,126.57,18.97929774]
[1744755916185,11.14,126.61,126.59,18.97929774]
[1744755916357,11.14,126.61,126.6,18.97929774]
[1744755916679,17.8009,126.67,126.6,18.97929774]
[1744755916858,36.78019774,126.67,126.62,18.97929774]
[1744755917065,18.97929774,126.66,126.61,18.97929774]
[1744755917466,18.97929774,126.65,126.6,18.97929774]
[1744755917667,18.97929774,126.64,126.6,18.97929774]
[1744755918472,18.97929774,126.65,126.6,18.97929774]
[1744755918673,7.89639924,126.64,126.6,18.97929774]
[1744755918980,0.14216157,126.6,126.53,18.97929774]
[1744755919190,18.97929774,126.57,126.52,18.97929774]
[1744755920088,26.88022171,126.57,126.51,90.9039741]
[1744755920380,26.88022171,126.57,126.52,18.97929774]
[1744755921686,26.88022171,126.57,126.52,26.88308271]
[1744755922666,26.88022171,126.57,126.53,18.97929774]
[1744755922667,7.90092397,126.57,126.53,18.97929774]
[1744755923276,26.87972558,126.58,126.53,18.97929774]
[1744755929294,18.97929774,126.57,126.52,18.97929774]
[1744755929474,26.87972558,126.58,126.53,18.97929774]
[1744755929675,7.90042784,126.58,126.54,18.97929774]
[1744755931492,26.87972558,126.58,126.53,18.97929774]
[1744755932200,26.87972558,126.58,126.52,7.90335022]
[1744755932201,18.97929774,126.57,126.52,26.88264796]
[1744755933195,7.90139064,126.56,126.52,18.97929774]
[1744755933597,7.90139064,126.56,126.52,26.88314458]
[1744755933806,26.87943994,126.58,126.53,18.97929774]
[1744755934805,38.01907061,126.59,126.54,18.97929774]
[1744755935010,19.03977287,126.59,126.55,18.97929774]
[1744755935180,19.03977287,126.59,126.56,18.97929774]
[1744755935511,19.03977287,126.59,126.55,18.97929774]
[1744755935807,19.03977287,126.59,126.53,7.9029674]
[1744755935808,11.14,126.59,126.58,18.97929774]
[1744755936303,11.14,126.59,126.57,18.97929774]
[1744755936904,11.14,126.59,126.58,18.97929774]
[1744755937298,11.14,126.59,126.58,11.85974741]
[1744755937715,11.14,126.59,126.56,7.90093415]
[1744755937886,11.14,126.59,126.58,11.85974741]
[1744755938308,11.14,126.59,126.57,11.85974741]
[1744755938906,19.03961029,126.59,126.57,11.85974741]
[1744755939097,11.85974741,126.58,126.54,11.85974741]
[1744755939409,11.85974741,126.56,126.51,83.0]
[1744755939703,46.0,126.58,126.51,83.0]
[1744755939704,11.85974741,126.55,126.51,83.0]
[1744755939908,11.12,126.54,126.51,83.0]
[1744755940082,11.12,126.54,126.51,102.76411639]
[1744755940289,11.12,126.54,126.52,11.85974741]
[1744755940497,11.12,126.54,126.51,94.85974741]
[1744755940912,11.12,126.54,126.51,83.0]
[1744755941101,11.12,126.54,126.51,94.85974741]
[1744755941503,11.12,126.54,126.51,102.76402704]
[1744755942381,11.12,126.54,126.51,90.90427963]
[1744755942586,11.12,126.54,126.51,102.76421234]
[1744755944097,11.12,126.54,126.52,11.85974741]
[1744755944298,11.12,126.54,126.53,11.85974741]
[1744755946148,11.12,126.54,126.53,19.76301145]
[1744755946526,11.12,126.58,126.53,19.76301145]
[1744755946720,11.12,126.58,126.56,11.85974741]
[1744755947244,11.12,126.58,126.57,11.85974741]
[1744755947625,11.12,126.58,126.54,11.85974741]
[1744755947825,11.12,126.58,126.57,11.85974741]
[1744755948259,11.12,126.58,126.56,11.85974741]
[1744755953157,11.12,126.58,126.56,19.76106936]
[1744755953658,11.12,126.58,126.55,7.90186008]
[1744755953851,11.12,126.58,126.56,11.85974741]
[1744755954532,11.12,126.58,126.57,11.85974741]
[1744755955358,11.12,126.58,126.56,19.76062865]
[1744755955560,11.12,126.58,126.57,11.85974741]
[1744755958854,11.12,126.58,126.56,11.85974741]
[1744755959057,11.12,126.58,126.55,7.90190904]
[1744755959358,11.12,126.58,126.57,11.85974741]
[1744755966759,32.40987559,126.58,126.51,83.0]
[1744755966941,19.76142305,126.56,126.52,19.76363612]
[1744755967267,19.76142305,126.56,126.52,11.85974741]
[1744755967767,5.73371798,126.55,126.52,11.85974741]
[1744755968170,5.73371798,126.55,126.51,90.90429632]
[1744755968171,5.73371798,126.55,126.51,83.0]
[1744755968480,23.83296539,126.55,126.48,162.20206193]
[1744755968647,5.73371798,126.55,126.54,11.85974741]
[1744755968845,18.6599,126.58,126.54,19.76192378]
[1744755969046,11.12,126.58,126.56,11.85974741]
[1744755969267,11.12,126.58,126.55,7.59303692]
[1744755969966,11.12,126.58,126.56,7.59303692]
[1744755971170,11.12,126.58,126.56,11.86351523]
[1744755972464,11.12,126.58,126.57,11.86351523]
[1744755972665,11.12,126.58,126.56,11.86351523]
[1744755974154,11.12,126.58,126.55,19.76537783]
[1744755975445,19.02031268,126.58,126.55,11.86351523]
[1744755977569,11.86351523,126.56,126.52,83.0]
[1744755977766,19.02031268,126.58,126.49,9.53352052]
[1744755977767,11.86351523,126.55,126.49,9.53352052]
[1744755978067,11.86351523,126.52,126.48,11.89351523]
[1744755978281,22.90351523,126.52,126.48,0.03]
[1744755979476,30.80783939,126.52,126.48,0.03]
[1744755979979,11.04,126.52,126.48,11.89351523]
[1744755980656,11.04,126.52,126.48,0.03]
[1744755980971,11.04,126.52,126.48,11.89351523]
[1744755981377,22.90351523,126.52,126.48,11.89351523]